bitfinex/quotes_ETHUSD_20250802
["timestamp","ask_amount","ask_price","bid_price","bid_amount"]
[1754094425867,0.001,3496.9,3496.7,2.85976604]
[1754094426069,0.001,3496.9,3496.8,2.85975749]
[1754094426606,0.001,3496.9,3496.7,2.85981077]
[1754094426806,0.001,3496.9,3496.6,2.85987147]
[1754094426969,0.4474,3496.9,3496.7,2.85982367]
[1754094427168,0.4474,3496.9,3496.8,2.85975749]
[1754094427665,0.001,3496.9,3496.7,2.85982668]
[1754094427972,0.001,3496.9,3496.8,2.85975749]
[1754094428676,0.001,3496.9,3496.6,2.85990845]
[1754094428677,0.001,3496.9,3496.7,2.85981932]
[1754094429216,0.001,3496.9,3496.4,4.425]
[1754094429217,0.4464,3496.8,3496.4,4.425]
[1754094429381,0.8328,3496.7,3496.3,7.28511444]
[1754094429713,0.37223299,3496.7,3496.3,2.86011444]
[1754094429915,1.41165012,3496.6,3495.1,0.4539]
[1754094430077,3.23209036,3496.7,3495.2,0.92501066]
[1754094430280,4.5672,3496.5,3496.0,3.00354525]
[1754094430615,0.4464,3496.4,3496.0,0.1432]
[1754094431183,0.4464,3496.4,3496.0,3.00361055]
[1754094431379,4.5672,3496.5,3496.1,2.8602832]
[1754094431602,0.1432,3496.5,3496.1,2.8602832]
[1754094431907,4.5672,3496.5,3496.1,0.4539]
[1754094432062,0.1432,3496.5,3496.1,0.4539]
[1754094432266,0.1432,3496.5,3496.0,3.0035911]
[1754094432267,4.424,3496.7,3496.2,0.4539]
[1754094432505,4.424,3496.7,3496.4,3.00321001]
[1754094432678,0.001,3496.9,3496.5,0.4539]
[1754094432878,0.001,3496.9,3496.7,3.00302516]
[1754094433472,0.001,3496.9,3496.7,0.5971]
[1754094434125,0.001,3496.9,3496.7,3.45692601]
[1754094434270,0.001,3496.9,3496.8,0.4539]
[1754094434811,0.001,3496.9,3496.7,3.00302601]
[1754094435019,0.001,3496.9,3496.7,0.1432]
[1754094435193,0.001,3496.9,3496.7,3.00302551]
[1754094435402,0.001,3496.9,3496.8,0.4539]
[1754094436909,0.001,3496.9,3496.8,4.13279812]
[1754094437119,0.001,3496.9,3496.8,4.57529812]
[1754094440727,0.001,3496.9,3496.8,7.57529812]
[1754094441424,0.001,3496.9,3496.8,11.99929812]
[1754094442185,0.001,3497.3,3497.2,5.8594304]
[1754094442423,0.001,3497.3,3497.2,11.74129319]
[1754094442583,0.001,3497.3,3497.2,12.64789319]
[1754094443229,0.001,3497.3,3497.2,2.8594304]
[1754094444204,0.001,3497.3,3496.9,0.4521]
[1754094444205,0.4668,3497.3,3496.4,3.0]
[1754094444569,0.8532,3497.3,3496.9,2.85966199]
[1754094444716,0.8532,3497.3,3497.0,2.85958103]
[1754094444915,0.4658,3497.2,3497.0,2.85958103]
[1754094445530,0.4658,3497.1,3497.0,2.85958103]
[1754094445890,0.4658,3497.1,3496.7,4.423]
[1754094446093,0.4658,3497.1,3496.8,2.8596812]
[1754094446527,0.4658,3497.1,3496.9,2.85964432]
[1754094446821,0.4658,3497.1,3496.9,2.85964711]
[1754094447928,0.3874,3497.3,3496.7,4.423]
[1754094447929,0.4658,3497.0,3496.7,4.423]
[1754094448229,0.4658,3497.0,3496.6,2.85990751]
[1754094448230,0.4658,3496.9,3496.6,2.85990751]
[1754094448646,0.88105012,3496.8,3496.3,2.86010902]
[1754094448855,0.3864,3497.1,3496.3,4.423]
[1754094449011,0.8522,3497.1,3496.5,2.85998687]
[1754094449347,4.08296545,3497.1,3496.5,2.85998687]
[1754094449553,1.22344915,3497.1,3496.4,0.4521]
[1754094449708,0.8522,3497.1,3496.6,2.85987326]
[1754094450042,0.4658,3497.0,3496.6,2.85987326]
[1754094450239,0.02885012,3497.0,3496.4,0.4521]
[1754094450430,0.4658,3496.9,3496.4,0.4521]
[1754094450634,0.4658,3496.9,3496.6,2.85986592]
[1754094451254,0.4658,3496.9,3496.4,0.4521]
[1754094451612,0.4658,3496.9,3496.5,2.85999111]
[1754094452209,0.4658,3496.9,3496.7,0.1432]
[1754094452411,0.49465012,3496.8,3496.2,2.86018765]
[1754094452613,2.86008051,3496.5,3496.3,0.1432]
[1754094452911,0.8522,3496.4,3496.0,0.1452]
[1754094453159,0.3864,3496.4,3496.0,0.1452]
[1754094453333,0.4658,3496.3,3496.1,2.86032156]
[1754094453724,0.1432,3496.5,3496.1,2.86032156]
[1754094453950,0.1432,3496.5,3496.0,3.00557833]
[1754094454147,0.609,3496.5,3496.0,3.45767833]
[1754094455006,0.609,3496.5,3496.2,2.86024511]
[1754094455215,11.9098,3497.3,3496.4,0.1432]
[1754094455426,0.1432,3497.2,3496.6,2.85991765]
[1754094455639,0.1432,3497.2,3496.7,0.1432]
[1754094455867,0.1432,3497.2,3496.8,0.4521]
[1754094456046,4.81843069,3497.2,3496.8,0.4521]
[1754094456377,11.9098,3497.3,3496.9,2.85961795]
[1754094456378,11.444,3497.3,3496.9,2.85961795]
[1754094456541,11.444,3497.3,3496.9,3.45491795]
[1754094456740,11.9098,3497.3,3496.9,3.45491795]
[1754094456942,7.021,3497.3,3497.1,2.85943485]
[1754094457136,7.021,3497.3,3497.0,3.31164906]
[1754094457653,7.021,3497.3,3497.0,2.85954906]
[1754094458064,7.021,3497.3,3496.9,0.1432]
[1754094458065,0.4658,3497.2,3496.9,0.1432]
[1754094458377,0.609,3497.2,3496.8,2.8597337]
[1754094458573,0.609,3497.2,3496.9,2.85967017]
[1754094458780,0.609,3497.2,3496.8,3.31182212]
[1754094458975,0.609,3497.2,3496.9,2.85960033]
[1754094459340,7.021,3497.3,3496.9,0.4521]
[1754094459341,11.444,3497.3,3496.9,0.4521]
[1754094459541,11.444,3497.3,3496.9,0.5953]
[1754094459739,11.444,3497.3,3497.0,2.85959222]
[1754094459740,4.424,3497.3,3497.0,2.85959222]
[1754094461365,4.424,3497.3,3496.9,3.45497406]
[1754094461980,4.424,3497.3,3497.0,2.85959132]
[1754094462192,0.001,3497.3,3497.0,0.63146445]
[1754094462479,4.423,3498.1,3497.2,0.1432]
[1754094462679,0.001,3498.3,3497.8,2.8589399]
[1754094462977,4.423,3498.2,3497.8,3.0021399]
[1754094463180,4.423,3498.2,3497.8,3.4542399]
[1754094463602,0.001,3498.3,3497.8,4.58551739]
[1754094464373,0.001,3498.3,3497.8,4.13101739]
[1754094464755,0.4668,3497.9,3497.6,2.85909739]
[1754094464983,0.4658,3497.8,3497.6,3.00229739]
[1754094465851,0.4658,3497.8,3497.7,2.85902164]
[1754094466055,0.4658,3497.8,3497.6,3.0022766]
[1754094466355,0.001,3497.9,3497.6,0.1432]
[1754094466556,0.609,3497.8,3497.5,2.8591829]
[1754094467140,0.4658,3497.7,3497.3,3.00254242]
[1754094467388,0.4658,3497.7,3497.3,0.1432]
[1754094467686,0.001,3497.9,3497.8,2.8589399]
[1754094467895,0.001,3497.9,3497.8,3.14483389]
[1754094468103,0.001,3497.9,3497.8,3.3110399]
[1754094468465,0.001,3497.9,3497.8,3.4542399]
[1754094468692,0.001,3497.9,3497.8,3.0021399]
[1754094468873,0.001,3497.9,3497.8,3.4542399]
[1754094469599,0.001,3497.9,3497.8,0.1432]
[1754094469894,0.4668,3497.9,3497.6,2.85906278]
[1754094470217,0.4668,3497.9,3497.4,2.85925951]
[1754094470218,0.88205012,3497.8,3496.9,0.4521]
[1754094470513,8.13428613,3497.7,3497.0,2.85954087]
[1754094470683,0.1432,3497.5,3497.0,3.00274087]
[1754094470886,0.02885012,3497.4,3497.0,3.00274087]
[1754094471092,0.4658,3497.3,3497.0,3.00274087]
[1754094471315,0.02885012,3497.2,3497.0,3.00274087]
[1754094471911,0.4693,3497.2,3496.7,0.4653]
[1754094472117,0.6125,3497.2,3496.8,2.85975749]
[1754094472289,0.1432,3497.2,3496.8,2.85975749]
[1754094472478,0.1432,3497.2,3496.9,3.32496353]
[1754094472679,0.1432,3497.2,3496.7,3.46826974]
[1754094472879,0.6125,3497.2,3496.8,2.85972384]
[1754094473500,0.6125,3497.2,3496.7,3.46829062]
[1754094473697,0.02885012,3497.1,3496.7,2.85979062]
[1754094473898,0.02885012,3497.1,3496.6,0.1432]
[1754094473899,0.49815012,3497.1,3496.6,0.1432]
[1754094474098,0.9999,3497.0,3496.5,0.1432]
[1754094474413,0.49815012,3496.9,3496.5,0.1432]
[1754094474777,0.49815012,3496.9,3496.1,0.002]
[1754094474778,3.00317181,3496.6,3496.1,0.002]
[1754094474983,0.02885012,3496.5,3496.1,0.002]
[1754094475325,0.49815012,3496.5,3496.1,0.002]
[1754094475692,0.02885012,3496.5,3496.1,0.002]
[1754094475896,0.1432,3496.6,3496.3,2.86009721]
[1754094476101,4.5652,3496.6,3496.4,0.4653]
[1754094476427,0.1432,3496.6,3496.5,0.9066]
[1754094476577,4.422,3496.8,3496.5,0.9066]
[1754094476782,4.422,3496.8,3496.6,0.4653]
[1754094476783,4.5652,3496.8,3496.6,0.4653]
[1754094477032,0.1432,3496.8,3496.5,2.8599806]
[1754094477322,0.1432,3496.8,3496.7,0.4653]
[1754094477883,4.422,3497.0,3496.7,0.4653]
[1754094478230,4.5652,3497.0,3496.8,0.4653]
[1754094478424,5.02172,3497.0,3496.8,0.4653]
[1754094479334,5.02172,3497.0,3496.6,0.4413]
[1754094479335,5.02172,3497.0,3496.5,0.1432]
[1754094479493,5.02172,3497.0,3496.5,0.6085]
[1754094480296,7.88133835,3497.0,3496.5,0.6085]
[1754094480496,7.88133835,3497.0,3496.5,0.1432]
[1754094480697,5.02172,3497.0,3496.6,0.4653]
[1754094480933,5.02172,3497.0,3496.6,2.85990252]
[1754094481135,4.5652,3497.0,3496.7,3.32512754]
[1754094481304,4.5652,3497.0,3496.8,0.4653]
[1754094481505,4.5652,3497.0,3496.5,0.1432]
[1754094481800,4.5652,3497.0,3496.6,3.32520551]
[1754094482008,4.5652,3497.0,3496.6,3.30120551]
[1754094482205,0.1432,3497.0,3496.7,0.4653]
[1754094482442,4.5652,3497.0,3496.9,2.85967571]
[1754094482647,4.422,3497.2,3496.9,2.85967571]
[1754094482819,4.5652,3497.2,3496.9,3.76627571]
[1754094483134,4.423,3497.2,3497.0,3.76618387]
[1754094483336,0.1432,3497.4,3497.2,2.85941481]
[1754094483639,0.1432,3497.4,3497.0,3.30088387]
[1754094483640,4.423,3497.4,3497.3,0.4653]
[1754094485318,4.423,3497.4,3497.0,3.44403623]
[1754094485540,4.423,3497.4,3497.1,3.32481045]
[1754094485857,4.423,3497.4,3497.2,0.4653]
[1754094486426,4.423,3497.4,3497.0,3.44407188]
[1754094486427,7.28226725,3497.4,3497.0,1.0498]
[1754094486628,4.423,3497.4,3497.1,0.4653]
[1754094487536,4.422,3497.4,3497.2,0.9066]
[1754094487752,4.422,3497.4,3497.3,0.9066]
[1754094487951,4.422,3497.4,3497.3,0.4653]
[1754094488152,4.422,3497.4,3497.3,3.32464864]
[1754094489026,0.1442,3497.7,3497.3,3.32464864]
[1754094489027,0.001,3497.7,3497.5,2.85918513]
[1754094489465,0.001,3497.7,3497.6,0.1432]
[1754094489675,0.001,3497.7,3497.6,3.46760338]
[1754094490178,0.001,3497.7,3497.6,0.6085]
[1754094490472,0.001,3497.7,3497.6,3.46760338]
[1754094491979,0.001,3497.7,3497.6,3.00230338]
[1754094492172,0.001,3497.7,3497.6,4.49505881]
[1754094493145,0.001,3497.7,3497.6,1.63595543]
[1754094493340,0.001,3497.7,3497.6,1.0498]
[1754094493536,0.001,3497.7,3497.6,3.90890338]
[1754094494154,0.001,3497.7,3497.6,0.6085]
[1754094495759,0.001,3497.7,3497.6,3.46760338]
[1754094496078,0.001,3497.7,3497.6,3.90890338]
[1754094496283,0.001,3497.7,3497.6,0.6085]
[1754094497381,0.001,3497.7,3497.6,3.46760338]
[1754094497579,0.001,3497.7,3497.6,0.6085]
[1754094498402,2.85910338,3497.6,3497.0,3.3248898]
[1754094498704,0.02885012,3497.5,3497.1,0.1432]
[1754094498996,0.02885012,3497.5,3496.8,0.002]
[1754094498997,2.85967493,3497.0,3496.8,0.002]
[1754094499199,0.49815012,3496.9,3496.8,0.002]
[1754094499516,7.28017266,3497.6,3496.9,0.4653]
[1754094499714,4.421,3497.6,3496.9,0.9066]
[1754094500017,2.85932104,3497.4,3497.0,0.4653]
[1754094500509,2.85932104,3497.4,3496.9,0.4413]
[1754094500510,4.421,3497.6,3497.1,0.4653]
[1754094500662,2.85936231,3497.3,3497.1,0.4653]
[1754094501092,2.85929493,3497.4,3497.1,0.4653]
[1754094501405,8.166879,3497.6,3497.2,0.4653]
[1754094501605,4.421,3497.5,3497.1,2.85951053]
[1754094501912,4.421,3497.5,3497.3,0.4717]
[1754094502061,7.28024908,3497.5,3497.3,0.4717]
[1754094502466,4.421,3497.5,3497.3,0.4717]
[1754094502711,7.28020468,3497.5,3497.3,0.4717]
[1754094503501,4.421,3497.5,3497.3,0.4717]
[1754094503712,7.28019666,3497.5,3497.3,0.4717]
[1754094504591,4.421,3497.5,3497.3,0.4717]
[1754094506719,4.422,3497.5,3497.3,0.4717]
[1754094506930,4.422,3497.5,3496.8,2.86172727]
[1754094506931,0.001,3497.5,3496.8,2.86172727]
[1754094507227,0.001,3497.5,3497.4,0.9107]
[1754094507405,0.001,3497.5,3497.4,3.76996688]
[1754094507606,0.001,3497.5,3497.4,0.9107]
[1754094507820,0.001,3497.5,3497.4,0.4717]
[1754094509134,0.001,3497.5,3497.4,0.9107]
[1754094509332,0.001,3497.5,3497.4,3.33096688]
[1754094509693,0.001,3497.5,3497.4,0.4717]
[1754094510533,2.85932556,3497.4,3496.9,0.1432]
[1754094510730,7.30820959,3497.3,3496.9,0.1432]
[1754094510933,7.27935947,3497.3,3496.9,0.1432]
[1754094511098,0.4526,3497.2,3496.9,0.1432]
[1754094511493,0.4526,3497.1,3496.8,0.002]
[1754094511706,0.1432,3497.0,3496.8,0.002]
[1754094512808,0.1432,3497.0,3496.8,0.4737]
[1754094513332,0.1432,3497.0,3496.8,0.002]
[1754094513738,0.4526,3496.9,3496.8,0.002]
[1754094514101,0.1432,3497.0,3496.8,0.002]
[1754094514535,0.5958,3497.0,3496.8,0.002]
[1754094514836,0.4526,3496.9,3496.8,0.002]
[1754094515633,3.31227571,3496.9,3496.8,0.002]
[1754094515804,4.84077209,3496.9,3496.8,0.002]
[1754094516304,4.81192197,3496.9,3496.8,0.002]
[1754094516509,1.95224626,3496.9,3496.8,0.002]
[1754094516711,1.56484626,3496.9,3496.8,0.002]
[1754094517320,4.42452197,3496.9,3496.8,0.002]
[1754094517528,4.45337209,3496.9,3496.8,0.002]
[1754094517906,4.42452197,3496.9,3496.8,0.002]
[1754094518252,4.45337209,3496.9,3496.8,0.002]
[1754094519038,11.86077209,3496.9,3496.8,0.002]
[1754094519238,11.83192197,3496.9,3496.8,0.002]
[1754094519623,12.05113491,3496.9,3496.8,0.002]
[1754094519850,11.21113491,3496.9,3496.8,0.002]
[1754094520063,14.29967571,3496.9,3496.8,0.002]
[1754094520261,11.44,3496.9,3496.8,0.002]
[1754094520450,14.29967571,3496.9,3496.8,0.4737]
[1754094520855,14.29967571,3496.9,3496.8,0.002]
[1754094521373,9.87967571,3496.9,3496.8,0.002]
[1754094521531,14.29967571,3496.9,3496.8,0.002]
[1754094521732,11.60991632,3496.9,3496.8,0.002]
[1754094521956,16.02891632,3496.9,3496.8,0.002]
[1754094522564,11.60991632,3496.9,3496.8,0.002]
[1754094522766,16.02991632,3496.9,3496.8,0.002]
[1754094522966,9.00991632,3496.9,3496.8,0.002]
[1754094523477,9.46251632,3496.9,3496.8,0.002]
[1754094524236,9.84991632,3496.9,3496.8,0.002]
[1754094524470,20.41991632,3496.9,3496.8,0.002]
[1754094526477,19.57991632,3496.9,3496.8,0.002]
[1754094526677,20.03251632,3496.9,3496.8,0.002]
[1754094527909,20.41991632,3496.9,3496.8,0.002]
[1754094529213,22.14091632,3496.9,3496.8,1e-08]
[1754094529373,8.13083927,3496.7,3496.6,1e-08]
[1754094529571,15.56128634,3496.7,3496.6,1e-08]
[1754094529915,16.40128634,3496.7,3496.6,1e-08]
[1754094530799,16.40228634,3496.7,3496.6,1e-08]
[1754094531308,16.01488634,3496.7,3496.6,1e-08]
[1754094531508,15.56128634,3496.7,3496.6,1e-08]
[1754094531807,16.02048634,3496.7,3496.6,1e-08]
[1754094534927,15.56128634,3496.7,3496.6,1e-08]
[1754094535640,16.02048634,3496.7,3496.6,1e-08]
[1754094535937,16.40788634,3496.7,3496.6,1e-08]
[1754094538550,0.55,3496.2,3496.1,0.002]
[1754094538704,10.14721503,3496.2,3496.1,1e-08]
[1754094538901,11.10816491,3496.2,3496.1,1e-08]
[1754094541441,4.58149372,3495.9,3495.3,0.4829]
[1754094541599,2.86114846,3495.1,3495.0,0.4829]
[1754094541799,2.86131219,3494.9,3494.8,0.002]
[1754094542140,7.45236231,3494.9,3494.8,0.4849]
[1754094542339,7.42351219,3494.9,3494.8,0.4849]
[1754094542913,7.42351219,3494.9,3494.8,0.002]
[1754094543112,8.75226957,3494.9,3494.8,0.002]
[1754094543312,9.30226957,3494.9,3494.8,0.002]
[1754094545023,13.14886957,3494.9,3494.8,0.002]
[1754094545613,12.97455667,3494.9,3494.8,0.002]
[1754094546252,12.51535667,3494.9,3494.8,0.002]
[1754094546457,12.51535667,3494.9,3494.8,0.4849]
[1754094548338,8.09635667,3494.9,3494.8,0.4849]
[1754094548516,4.5622,3494.9,3494.8,0.9367]
[1754094548713,7.42351219,3494.9,3494.8,0.9367]
[1754094549251,7.42351219,3494.9,3494.8,0.4849]
[1754094549626,7.42351219,3494.9,3494.8,0.9367]
[1754094550449,7.42351219,3494.9,3494.8,0.002]
[1754094550653,8.66771369,3494.9,3494.8,0.002]
[1754094550860,8.66771369,3494.9,3494.8,0.4849]
[1754094551075,9.21771369,3494.9,3494.8,0.4849]
[1754094552747,8.18924179,3494.9,3494.8,0.4849]
[1754094552943,3.77024179,3494.9,3494.8,0.9367]
[1754094553163,8.18924179,3494.9,3494.8,0.9367]
[1754094553982,4.5622,3494.9,3494.8,0.9367]
[1754094554291,4.419,3494.9,3494.8,0.9367]
[1754094555157,7.28031219,3494.9,3494.8,0.9367]
[1754094555487,5.60180476,3494.9,3494.8,0.9367]
[1754094555673,7.28031219,3494.9,3494.8,0.9367]
[1754094557189,4.419,3494.9,3494.8,0.9367]
[1754094557348,7.28031219,3494.9,3494.8,0.9367]
[1754094558046,4.419,3494.9,3494.8,0.9367]
[1754094558547,7.28031219,3494.9,3494.8,0.9367]
[1754094559694,9.03430645,3494.9,3494.8,0.002]
[1754094559846,12.88090645,3494.9,3494.8,0.002]
[1754094560049,14.60190645,3494.9,3494.8,0.002]
[1754094560559,21.62190645,3494.9,3494.8,0.002]
[1754094562544,0.55,3493.6,3493.1,0.002]
[1754094562696,2.86262273,3493.3,3493.1,0.4822]
[1754094563009,7.28062273,3493.3,3493.1,0.002]
[1754094563220,7.28062273,3493.3,3493.2,0.43090001]
[1754094563711,7.28062273,3493.3,3493.2,0.91110001]
[1754094564010,7.28062273,3493.3,3493.2,0.48020001]
[1754094564167,8.89993089,3493.3,3493.2,1e-08]
[1754094564613,8.89993089,3493.3,3493.2,0.48020001]
[1754094565478,7.49774163,3493.3,3493.2,0.91110001]
[1754094566310,2.8625903,3493.4,3493.2,0.91110001]
[1754094566477,7.28062273,3493.3,3493.2,1e-08]
[1754094567210,7.28062273,3493.3,3493.2,0.91110001]
[1754094567583,2.86262273,3493.3,3493.2,0.91110001]
[1754094567791,7.28162273,3493.3,3493.2,0.91110001]
[1754094568969,8.29603246,3493.3,3493.2,0.48020001]
[1754094570102,8.29603246,3493.3,3493.2,1e-08]
[1754094570305,8.51153845,3493.3,3493.2,1e-08]
[1754094571468,7.49712872,3493.3,3493.2,0.91110001]
[1754094572511,7.64032872,3493.3,3493.2,0.91110001]
[1754094573314,7.64032872,3493.3,3493.2,0.48020001]
[1754094573488,7.64032872,3493.3,3493.2,1e-08]
[1754094573999,14.66032872,3493.3,3493.2,1e-08]
[1754094574181,16.41260905,3493.3,3493.2,1e-08]
[1754094574580,16.41260905,3493.3,3493.2,0.48020001]
[1754094575585,10.02582273,3493.3,3493.2,0.91110001]
[1754094575810,14.44482273,3493.3,3493.2,0.91110001]
[1754094577914,17.44482273,3493.3,3493.2,1e-08]
[1754094578481,17.44482273,3493.3,3493.2,0.48020001]
[1754094582226,17.44482273,3493.3,3493.2,1e-08]
[1754094582422,19.47555246,3493.3,3493.2,1e-08]
[1754094583583,19.94225246,3493.3,3493.2,1e-08]
[1754094584204,19.47555246,3493.3,3493.2,1e-08]
[1754094584524,19.69529951,3493.3,3493.2,1e-08]
[1754094585193,19.69529951,3493.3,3493.2,0.48020001]
[1754094586027,15.27629951,3493.3,3493.2,0.48020001]
[1754094586192,19.69529951,3493.3,3493.2,0.48020001]
[1754094587854,14.44382273,3493.3,3493.2,0.91110001]
[1754094588703,11.5822,3493.3,3493.2,0.91110001]
[1754094591343,4.5622,3493.3,3493.2,0.91110001]
[1754094591509,4.5612,3493.3,3493.2,0.91110001]
[1754094592617,0.1432,3493.3,3493.2,0.91110001]
[1754094592816,4.5612,3493.3,3493.2,0.91110001]
[1754094593513,7.42382273,3493.3,3493.2,0.91110001]
[1754094593809,4.5612,3493.3,3493.2,0.91110001]
[1754094594261,4.5612,3493.3,3493.2,1e-08]
[1754094594559,4.5612,3493.3,3493.2,0.48140001]
[1754094595355,4.5612,3493.3,3493.2,0.93340001]
[1754094600516,0.1432,3493.6,3493.3,2.86262273]
[1754094600863,0.1432,3493.9,3493.4,1.0766]
[1754094601062,0.1432,3494.1,3493.8,2.86215511]
[1754094601231,4.417,3494.0,3493.9,0.452]
[1754094601429,4.417,3494.0,3493.9,3.79553114]
[1754094601630,4.417,3494.0,3493.9,0.9334]
[1754094603058,4.417,3494.0,3493.9,0.4814]
[1754094603227,5.15920912,3494.0,3493.3,2.86256333]
[1754094603430,7.86218341,3494.0,3493.3,2.86256333]
[1754094603630,7.86218341,3494.0,3493.2,1e-08]
[1754094603631,0.55,3493.8,3493.2,1e-08]
[1754094603848,3.00582273,3493.3,3493.2,1e-08]
[1754094604050,7.45067285,3493.3,3493.2,1e-08]
[1754094604361,29.55338685,3493.3,3493.2,1e-08]
[1754094605467,20.06348267,3493.3,3493.2,1e-08]
[1754094609463,20.06348267,3493.3,3492.8,1e-08]
[1754094609464,2.8628574,3493.1,3492.8,1e-08]
[1754094609648,22.20501607,3492.9,3492.8,1e-08]
[1754094609833,24.45310675,3492.9,3492.8,1e-08]
[1754094610220,25.28040675,3492.9,3492.8,1e-08]
[1754094610424,3.41319647,3492.6,3492.5,1e-08]
[1754094610660,7.85804659,3492.6,3492.5,1e-08]
[1754094610845,9.03319073,3492.6,3492.5,1e-08]
[1754094611024,10.00369073,3492.6,3492.5,1e-08]
[1754094611225,14.72469073,3492.6,3492.5,1e-08]
[1754094611428,13.00369073,3492.6,3492.5,1e-08]
[1754094613548,8.20029073,3492.6,3492.5,1e-08]
[1754094613762,12.61629073,3492.6,3492.5,1e-08]
[1754094614015,8.48319073,3492.6,3492.5,1e-08]
[1754094614271,7.42239647,3492.6,3492.5,1e-08]
[1754094614485,8.24969647,3492.6,3492.5,1e-08]
[1754094614634,11.79969647,3492.6,3492.5,1e-08]
[1754094616140,3.0,3492.1,3491.8,0.002]
[1754094616344,6.41377044,3491.9,3491.8,0.002]
[1754094616669,12.88377043,3491.9,3491.8,0.002]
[1754094616866,17.29977043,3491.9,3491.8,0.002]
[1754094617052,17.44297043,3491.9,3491.8,0.4834]
[1754094617477,10.16319999,3491.9,3491.8,0.9354]
[1754094617810,11.43599999,3491.9,3491.8,0.9354]
[1754094618552,11.43699999,3491.9,3491.8,3.79925245]
[1754094618879,11.43699999,3491.9,3491.8,0.9354]
[1754094619084,11.43699999,3491.9,3491.8,3.79925245]
[1754094619642,11.43699999,3491.9,3491.8,0.9354]
[1754094619845,11.43699999,3491.9,3491.8,3.79925245]
[1754094620489,11.43599999,3491.9,3491.8,0.9354]
[1754094620861,7.01999999,3491.9,3491.8,4.47991093]
[1754094621060,7.01999999,3491.9,3491.8,4.62311093]
[1754094624009,4.416,3492.0,3491.8,1.75925848]
[1754094624162,4.416,3492.0,3491.8,3.94242656]
[1754094624366,4.416,3492.0,3491.9,0.8994]
[1754094624959,4.416,3492.0,3491.9,0.4528]
[1754094625165,2.86377044,3491.9,3491.8,0.002]
[1754094625365,0.02885012,3491.9,3491.8,0.002]
[1754094625681,7.86452209,3492.0,3491.8,0.002]
[1754094626205,2.86377044,3491.9,3491.8,0.002]
[1754094626360,4.01199944,3491.9,3491.8,0.002]
[1754094626562,3.98314932,3491.9,3491.8,0.002]
[1754094626783,4.44874932,3491.9,3491.8,0.002]
[1754094626981,15.04759943,3491.9,3491.8,0.002]
[1754094627183,15.40614931,3491.9,3491.8,0.002]
[1754094629693,17.12714931,3491.9,3491.8,1e-08]
[1754094631138,3.41475492,3490.7,3490.6,0.002]
[1754094631280,8.48754686,3490.7,3490.6,0.002]
[1754094631484,12.45489674,3490.7,3490.6,0.002]
[1754094632224,3.41500114,3490.4,3490.3,1e-08]
[1754094632524,3.41524741,3490.1,3490.0,1e-08]
[1754094632685,11.00329753,3490.1,3490.0,1e-08]
[1754094632898,11.82744741,3490.1,3490.0,1e-08]
[1754094633101,12.88534844,3490.1,3490.0,1e-08]
[1754094633336,28.67741396,3490.1,3490.0,1e-08]
[1754094633649,28.67741396,3490.1,3488.8,0.002]
[1754094633650,3.41623291,3488.9,3488.8,0.002]
[1754094633801,10.86108303,3488.9,3488.8,0.002]
[1754094633999,10.97543291,3488.9,3488.8,0.002]
[1754094634730,11.82843291,3488.9,3488.8,0.002]
[1754094635042,13.39452763,3488.9,3488.8,0.002]
[1754094636896,3.41656155,3488.5,3488.4,0.002]
[1754094637206,3.41656155,3488.5,3488.4,1e-08]
[1754094637207,11.00561167,3488.5,3488.4,1e-08]
[1754094637403,11.82976155,3488.5,3488.4,1e-08]
[1754094637704,13.44578803,3488.5,3488.4,1e-08]
[1754094638644,13.05838803,3488.5,3488.4,1e-08]
[1754094639221,13.27517282,3488.5,3488.4,1e-08]
[1754094639417,12.80957282,3488.5,3488.4,1e-08]
[1754094639759,13.27517282,3488.5,3488.4,1e-08]
[1754094639957,13.66257282,3488.5,3488.4,1e-08]
[1754094640538,3.41689028,3488.1,3488.0,1e-08]
[1754094640836,25.80652716,3488.1,3488.0,1e-08]
[1754094641020,25.77767704,3488.1,3488.0,1e-08]
[1754094641217,26.63067704,3488.1,3488.0,1e-08]
[1754094641445,22.35587704,3488.1,3488.0,1e-08]
[1754094641662,29.38894352,3488.1,3488.0,1e-08]
[1754094642660,15.318878,3488.1,3488.0,1e-08]
[1754094642869,29.38994352,3488.1,3488.0,1e-08]
[1754094643284,1.721,3487.9,3483.3,2.87080797]
[1754094643448,3.55,3486.5,3484.6,0.1432]
[1754094643631,0.1432,3485.1,3484.7,0.8994]
[1754094643831,4.439,3485.0,3484.9,2.86952279]
[1754094644145,4.44,3485.2,3485.0,3.53328084]
[1754094644345,4.44,3485.2,3484.9,1.0426]
[1754094644346,4.44,3485.2,3485.1,0.8994]
[1754094644563,4.44,3485.2,3485.1,0.4466]
[1754094644735,4.44,3485.2,3485.1,0.8994]
[1754094645136,7.48132591,3485.2,3485.1,0.8994]
[1754094645479,4.5832,3485.2,3485.1,0.8994]
[1754094645647,4.61205012,3485.2,3485.1,0.8994]
[1754094645974,7.48132591,3485.2,3485.1,0.8994]
[1754094646173,8.00247579,3485.2,3485.1,0.8994]
[1754094646361,5.1332,3485.2,3485.1,0.8994]
[1754094646678,4.5852,3485.2,3485.1,3.76875812]
[1754094647252,4.442,3485.2,3485.1,0.8994]
[1754094647486,4.5852,3485.2,3485.1,0.8994]
[1754094647837,7.45447579,3485.2,3485.1,0.8994]
[1754094648084,9.03682697,3485.2,3485.1,0.8994]
[1754094648396,2.86952279,3484.9,3484.7,0.4528]
[1754094648583,4.5882,3484.8,3484.6,0.002]
[1754094649191,4.5882,3484.8,3484.7,0.8994]
[1754094649595,0.1432,3484.8,3484.7,3.76908749]
[1754094649819,3.0,3486.1,3484.7,1.56349303]
[1754094650036,0.1432,3485.4,3484.9,3.01267177]